bitfinex/quotes_BTCUSD_20250525
["timestamp","ask_amount","ask_price","bid_price","bid_amount"]
[1748135735709,0.08954556,107040.0,107030.0,0.98933653]
[1748135735915,0.08954556,107040.0,107030.0,0.68292869]
[1748135736161,0.08954556,107040.0,107030.0,0.40336869]
[1748135736342,0.09054556,107040.0,107030.0,0.68492869]
[1748135737534,0.09054556,107040.0,107030.0,1.24400869]
[1748135737761,0.09054556,107040.0,107030.0,0.40536869]
[1748135737965,0.09054556,107040.0,107030.0,0.68492869]
[1748135738392,0.09054556,107040.0,107030.0,0.06536869]
[1748135738595,0.09054556,107040.0,107030.0,0.34492869]
[1748135738747,0.09054556,107040.0,107000.0,0.36198285]
[1748135738748,0.09054556,107040.0,107000.0,0.24915423]
[1748135738923,0.09104983,107040.0,107000.0,0.24915423]
[1748135739545,0.09004983,107040.0,107000.0,0.24915423]
[1748135739943,0.09004983,107040.0,107010.0,0.2796]
[1748135739944,0.09104983,107040.0,107010.0,0.2796]
[1748135740888,0.09104983,107040.0,107020.0,0.34233557]
[1748135741093,0.09104983,107040.0,107020.0,0.34]
[1748135741513,0.09604983,107040.0,107030.0,0.2796]
[1748135742133,0.09504983,107040.0,107020.0,0.0573]
[1748135742339,0.12274983,107040.0,107020.0,0.0284]
[1748135742554,0.09454556,107030.0,107010.0,0.0573]
[1748135742785,0.09454556,107030.0,107020.0,0.2796]
[1748135744028,0.09554556,107030.0,107020.0,0.2796]
[1748135744239,0.09454556,107030.0,107020.0,0.2796]
[1748135744444,0.09454556,107030.0,107010.0,0.0284]
[1748135744617,0.0338,107030.0,107020.0,0.2796]
[1748135744817,0.12334556,107030.0,107020.0,0.2796]
[1748135745057,0.09454556,107030.0,107020.0,0.2796]
[1748135745240,0.09454556,107030.0,107020.0,0.3064]
[1748135745383,0.09554556,107030.0,107020.0,0.2796]
[1748135745590,0.09554556,107030.0,107000.0,0.06626788]
[1748135745786,0.08954556,107020.0,107010.0,0.27964]
[1748135746230,0.08954556,107020.0,107000.0,0.0557]
[1748135746430,0.08954556,107020.0,107010.0,0.27964]
[1748135746650,0.08954556,107020.0,107010.0,0.0557]
[1748135746861,0.08954556,107020.0,107010.0,0.33534]
[1748135747208,0.09054556,107020.0,107010.0,0.33534]
[1748135747749,0.09054556,107020.0,107010.0,1.3113]
[1748135747980,0.09054556,107020.0,107010.0,1.2556]
[1748135748182,0.09054556,107020.0,107010.0,0.8194]
[1748135748335,0.08954556,107020.0,107010.0,0.6964]
[1748135748755,0.09054556,107020.0,107010.0,0.6964]
[1748135748957,0.09054556,107020.0,107010.0,0.27964]
[1748135749365,0.09054556,107020.0,107000.0,0.0268]
[1748135749760,0.12314556,107020.0,107010.0,0.27964]
[1748135749921,0.09554556,107020.0,107010.0,0.27964]
[1748135750558,0.09554556,107020.0,107000.0,0.00494451]
[1748135750754,0.09554556,107020.0,107000.0,0.03204451]
[1748135751219,0.09554556,107020.0,107000.0,0.04070722]
[1748135751381,0.09454556,107020.0,107000.0,0.04070722]
[1748135751782,0.09554556,107020.0,107010.0,0.27968]
[1748135752536,0.09554556,107020.0,107010.0,0.28834271]
[1748135753111,0.09454556,107020.0,107010.0,0.28834271]
[1748135753311,0.09554556,107020.0,107010.0,0.00866271]
[1748135753497,0.09554556,107020.0,107010.0,0.28834271]
[1748135755284,0.09554556,107020.0,107010.0,0.00866271]
[1748135755485,0.09554556,107020.0,107010.0,0.28834271]
[1748135756785,0.09554556,107020.0,107000.0,0.0559]
[1748135757182,0.09554556,107020.0,107010.0,0.0559]
[1748135757533,0.09554556,107020.0,107010.0,0.9762]
[1748135757739,0.4576534,107020.0,106990.0,0.11611258]
[1748135757949,0.11754556,107000.0,106990.0,0.06021258]
[1748135758126,0.09454556,107000.0,106990.0,0.32968]
[1748135758363,0.09454556,107000.0,106990.0,0.05]
[1748135758564,0.09454556,107000.0,106990.0,0.32968]
[1748135759199,0.09504952,107000.0,106990.0,0.32968]
[1748135759409,0.09604952,107000.0,106990.0,0.32968]
[1748135760026,0.00150396,107000.0,106990.0,1.19758969]
[1748135760267,0.01196154,107020.0,107000.0,0.34]
[1748135760448,0.01196154,107020.0,107010.0,3.79151241]
[1748135760650,0.01196154,107020.0,107010.0,3.3706449]
[1748135760865,0.001,107020.0,107010.0,3.2993089]
[1748135761313,0.001,107020.0,107010.0,3.29336769]
[1748135761500,0.03256933,107030.0,107020.0,0.0553]
[1748135761695,0.03256933,107030.0,107020.0,0.64376307]
[1748135761869,0.03256933,107030.0,107020.0,0.64142784]
[1748135762853,0.03256933,107030.0,107020.0,0.33502]
[1748135763058,0.03356933,107030.0,107020.0,0.64442784]
[1748135763259,0.12311489,107030.0,107020.0,0.64442784]
[1748135763552,0.03356933,107030.0,107020.0,0.64442784]
[1748135763965,0.001,107030.0,107020.0,0.64442784]
[1748135765518,0.001,107030.0,107020.0,0.98442784]
[1748135766153,0.001,107030.0,107020.0,1.83791284]
[1748135766597,0.01096154,107080.0,107050.0,0.34]
[1748135766812,0.08954556,107070.0,107060.0,1.62883652]
[1748135767033,0.1005071,107080.0,107070.0,0.34]
[1748135767248,0.1005071,107080.0,107070.0,1.56044984]
[1748135767474,0.08954556,107080.0,107070.0,1.90819568]
[1748135767758,0.03256933,107090.0,107080.0,0.0279]
[1748135767970,0.12211489,107090.0,107080.0,0.58608784]
[1748135768392,0.12211489,107090.0,107080.0,0.64098784]
[1748135768594,0.12211489,107090.0,107080.0,0.65524326]
[1748135768989,0.12211489,107090.0,107080.0,0.34883542]
[1748135769225,0.12211489,107090.0,107080.0,0.65724326]
[1748135769450,0.08954556,107090.0,107080.0,0.65724326]
[1748135770442,0.08954556,107090.0,107080.0,0.002]
[1748135770674,0.08954556,107090.0,107080.0,0.30840784]
[1748135770874,0.08954556,107090.0,107080.0,0.58800784]
[1748135771635,0.08954556,107090.0,107080.0,0.61670784]
[1748135771838,0.08954556,107090.0,107080.0,0.64450784]
[1748135772292,0.08954556,107090.0,107080.0,0.98450784]
[1748135772645,0.005,107110.0,107080.0,1.29091568]
[1748135772857,0.08954556,107100.0,107090.0,0.3687]
[1748135773063,0.08954556,107100.0,107090.0,0.67510784]
[1748135773510,0.08954556,107100.0,107090.0,1.16145784]
[1748135773681,0.0739269,107130.0,107100.0,0.0558]
[1748135773903,0.08954556,107120.0,107110.0,0.58830159]
[1748135774158,19.29545841,107090.0,107080.0,0.35735498]
[1748135774371,19.29545841,107090.0,107080.0,3.95744974]
[1748135774694,19.29545841,107090.0,107080.0,1.60765797]
[1748135774940,19.29545841,107090.0,107080.0,1.62492833]
[1748135775143,19.29545841,107090.0,107080.0,1.62497881]
[1748135775383,19.29545841,107090.0,107080.0,1.90453881]
[1748135775986,19.29545841,107090.0,107080.0,1.90553881]
[1748135776365,19.29545841,107090.0,107080.0,1.90549881]
[1748135777172,19.29545841,107090.0,107080.0,1.96129881]
[1748135777548,19.2620282,107090.0,107080.0,2.9628276]
[1748135777751,19.2620282,107090.0,107080.0,1.9889476]
[1748135778539,17.55302873,107090.0,107080.0,2.10317316]
[1748135778754,15.24946113,107090.0,107080.0,2.55632854]
[1748135778967,13.20463095,107090.0,107080.0,2.52577977]
[1748135779222,11.2013488,107090.0,107080.0,2.50546818]
[1748135779440,9.23474826,107090.0,107080.0,2.87346559]
[1748135779645,4.39059675,107090.0,107080.0,2.87346559]
[1748135779851,4.3481679,107090.0,107080.0,2.88046559]
[1748135780065,4.23980838,107090.0,107080.0,2.7049104]
[1748135780280,4.2033665,107090.0,107080.0,2.7049104]
[1748135780502,4.09451554,107090.0,107080.0,2.71853264]
[1748135780729,3.88568106,107090.0,107080.0,2.71853264]
[1748135780908,3.35322639,107090.0,107080.0,2.71853264]
[1748135781158,3.32064979,107090.0,107080.0,2.71853264]
[1748135781365,2.09035858,107090.0,107080.0,2.71853264]
[1748135781779,2.0503359,107090.0,107080.0,2.71153264]
[1748135781987,2.01930145,107090.0,107080.0,2.71153264]
[1748135782163,1.94780798,107090.0,107080.0,2.71853264]
[1748135782490,1.87720354,107090.0,107080.0,2.71853264]
[1748135782680,1.86717207,107090.0,107080.0,2.71853264]
[1748135782884,1.85972599,107090.0,107080.0,2.71853264]
[1748135783137,1.82714939,107090.0,107080.0,2.43901264]
[1748135783322,1.81970331,107090.0,107080.0,2.71845264]
[1748135783621,1.77975166,107090.0,107080.0,2.71845264]
[1748135783819,1.33097506,107090.0,107080.0,3.01941264]
[1748135784048,1.33097506,107090.0,107080.0,2.02901264]
[1748135784049,1.32352898,107090.0,107080.0,2.02901264]
[1748135784201,0.47843058,107090.0,107080.0,2.34001264]
[1748135784414,0.4384079,107090.0,107080.0,2.71845264]
[1748135784737,0.41809666,107090.0,107080.0,2.72195264]
[1748135784875,0.37997575,107090.0,107080.0,2.72195264]
[1748135785073,0.32546107,107090.0,107080.0,2.62195264]
[1748135785278,0.31761499,107090.0,107080.0,2.72195264]
[1748135785549,0.30768952,107090.0,107080.0,2.72195264]
[1748135785765,0.26766684,107090.0,107080.0,2.62195264]
[1748135785962,0.26766684,107090.0,107080.0,2.62187264]
[1748135786189,0.25962076,107090.0,107080.0,2.62187264]
[1748135786370,0.13396816,107090.0,107080.0,2.34251264]
[1748135786573,0.07998408,107090.0,107080.0,2.04287523]
[1748135786792,0.046538,107090.0,107080.0,2.37058733]
[1748135787040,0.00327264,107090.0,107080.0,2.72836357]
[1748135787206,0.1000269,107170.0,107080.0,2.72836357]
[1748135787207,0.055,107160.0,107130.0,0.05]
[1748135787405,0.055,107160.0,107140.0,2.99598956]
[1748135787633,0.055,107160.0,107150.0,0.653032]
[1748135788307,0.0739269,107170.0,107150.0,1.08257756]
[1748135788498,0.00050489,107160.0,107150.0,0.42954556]
[1748135788702,0.00050489,107160.0,107150.0,2.61954156]
[1748135788905,0.00250489,107160.0,107150.0,1.77076856]
[1748135789061,0.02650489,107160.0,107150.0,1.77076856]
[1748135789972,0.00050489,107160.0,107150.0,1.77076856]
[1748135790700,0.05340489,107160.0,107150.0,0.61932]
[1748135790914,0.05340489,107160.0,107150.0,0.61928]
[1748135791070,0.05440489,107160.0,107150.0,0.27928]
[1748135791272,0.36081273,107160.0,107150.0,0.27928]
[1748135791831,0.05440489,107160.0,107150.0,0.27928]
[1748135792129,0.026,107140.0,107130.0,0.027946]
[1748135792334,0.026,107140.0,107130.0,1.09944756]
[1748135792503,0.0529,107140.0,107130.0,0.38724056]
[1748135792710,0.0529,107140.0,107130.0,0.55685056]
[1748135793114,0.0529,107140.0,107130.0,0.56687389]
[1748135793682,0.0529,107140.0,107130.0,0.62759389]
[1748135794078,0.0529,107140.0,107130.0,0.83330989]
[1748135794328,0.0529,107140.0,107130.0,0.74376433]
[1748135794689,0.0529,107140.0,107130.0,0.35002333]
[1748135794896,0.0529,107140.0,107130.0,0.62930333]
[1748135795094,0.0529,107140.0,107130.0,0.01102333]
[1748135795521,0.14244556,107140.0,107130.0,0.28028]
[1748135795723,0.44820025,107140.0,107130.0,0.28028]
[1748135795942,0.44820025,107140.0,107130.0,0.01090414]
[1748135795943,0.0529,107140.0,107130.0,0.01090414]
[1748135796139,0.0529,107140.0,107130.0,1.35914414]
[1748135796369,0.0529,107140.0,107130.0,1.5307997]
[1748135796738,0.0529,107140.0,107130.0,1.30875314]
[1748135796944,0.0529,107140.0,107130.0,0.63018414]
[1748135797123,0.0529,107140.0,107130.0,0.62918414]
[1748135797590,0.0539,107140.0,107130.0,1.60110414]
[1748135797976,0.0539,107140.0,107130.0,1.04254414]
[1748135799142,0.0539,107140.0,107130.0,1.84922314]
[1748135799346,0.0539,107140.0,107130.0,1.9387687]
[1748135799347,0.001,107140.0,107130.0,1.9387687]
[1748135799609,0.001,107140.0,107130.0,1.1200267]
[1748135800276,0.00050489,107160.0,107130.0,1.1200267]
[1748135800498,0.0578,107150.0,107130.0,0.7187297]
[1748135802499,0.0578,107150.0,107140.0,0.00116609]
[1748135802739,0.0277,107150.0,107140.0,0.34116609]
[1748135802950,0.0277,107150.0,107140.0,1.208065]
[1748135803617,0.0277,107150.0,107140.0,1.27578785]
[1748135804203,0.0578,107150.0,107140.0,1.27578785]
[1748135804401,0.0578,107150.0,107140.0,1.24495785]
[1748135804859,0.00050489,107160.0,107140.0,1.27380612]
[1748135805075,0.0581,107170.0,107150.0,2.07330951]
[1748135805295,0.0581,107170.0,107160.0,0.27928]
[1748135805914,0.0581,107170.0,107160.0,1.206312]
[1748135806359,0.0581,107170.0,107160.0,0.456526]
[1748135807038,0.0611,107170.0,107160.0,0.456526]
[1748135807669,0.0611,107170.0,107160.0,1.768446]
[1748135808896,0.0611,107170.0,107160.0,0.796526]
[1748135809072,0.0571,107170.0,107160.0,0.796526]
[1748135809858,0.0571,107170.0,107160.0,0.797526]
[1748135810497,0.003,107170.0,107160.0,0.91901241]
[1748135810726,0.0269,107200.0,107170.0,0.34]
[1748135810936,0.0269,107200.0,107190.0,0.34]
[1748135811163,0.0269,107200.0,107190.0,0.61928]
[1748135811366,0.0269,107200.0,107190.0,1.51154156]
[1748135811573,0.0269,107200.0,107190.0,4.76279356]
[1748135811776,0.0269,107200.0,107190.0,4.62778756]
[1748135812207,0.02705142,107200.0,107190.0,3.37751641]
[1748135812389,0.02705142,107200.0,107190.0,3.29483192]
[1748135812592,0.02705142,107200.0,107190.0,3.21899192]
[1748135813007,0.00115142,107200.0,107190.0,3.21899192]
[1748135813220,0.00115142,107200.0,107190.0,3.08604892]
[1748135813354,0.03256933,107220.0,107200.0,0.12280265]
[1748135813607,0.03256933,107220.0,107210.0,3.84356941]
[1748135813834,0.03256933,107220.0,107210.0,3.87479341]
[1748135814033,0.03256933,107220.0,107210.0,3.58770641]
[1748135814445,0.03256933,107220.0,107210.0,3.95350451]
[1748135814667,0.03256933,107220.0,107210.0,3.86532641]
[1748135814875,0.0619,107240.0,107220.0,0.34]
[1748135815028,0.06205154,107240.0,107230.0,0.2792]
[1748135815237,0.30575469,107270.0,107240.0,0.34]
[1748135815559,0.08954556,107260.0,107240.0,0.34]
[1748135816168,0.39530025,107260.0,107240.0,0.34]
[1748135816324,0.30575469,107250.0,107240.0,0.01009515]
[1748135816529,0.39530025,107250.0,107240.0,0.2792]
[1748135816955,0.39530025,107250.0,107210.0,0.35405272]
[1748135817149,0.08954556,107250.0,107230.0,0.34]
[1748135817571,0.09254556,107250.0,107240.0,1.31148]
[1748135817751,0.22559579,107280.0,107240.0,1.31148]
[1748135817975,0.08954556,107250.0,107240.0,0.34]
[1748135818175,0.15574556,107250.0,107240.0,0.61916]
[1748135818788,0.0652,107240.0,107230.0,0.01021787]
[1748135818939,0.0652,107240.0,107210.0,0.10530042]
[1748135819149,0.0652,107240.0,107220.0,0.27916]
[1748135819150,0.30575469,107240.0,107220.0,0.27916]
[1748135819392,0.39530025,107250.0,107220.0,0.27916]
[1748135819561,0.08954556,107240.0,107220.0,0.27916]
[1748135819774,0.0652,107230.0,107220.0,0.27916]
[1748135820196,0.0652,107230.0,107220.0,0.01865227]
[1748135820611,0.37095469,107230.0,107220.0,0.02879301]
[1748135820807,0.46050025,107230.0,107220.0,0.29781227]
[1748135821062,0.46050025,107230.0,107220.0,0.01865227]
[1748135821261,0.0652,107220.0,107210.0,0.00015154]
[1748135821492,0.46050025,107220.0,107210.0,0.00015154]
[1748135821724,0.45850025,107220.0,107210.0,0.00015154]
[1748135821946,1.15520025,107220.0,107210.0,0.00015154]
[1748135822148,0.30575469,107190.0,107150.0,0.0739269]
[1748135822355,0.0323,107170.0,107160.0,0.00015142]
[1748135822791,0.0313,107170.0,107160.0,0.27931142]
[1748135822999,0.0313,107170.0,107160.0,0.28930096]
[1748135823203,0.0313,107170.0,107160.0,0.27931142]
[1748135823821,0.19659554,107220.0,107160.0,0.00015142]
[1748135824029,0.30575469,107190.0,107160.0,0.28047605]
[1748135824232,0.39530025,107190.0,107160.0,0.27931142]
[1748135824669,0.08954556,107190.0,107160.0,0.34015142]
[1748135824850,0.30575469,107200.0,107160.0,0.34015142]
[1748135824851,0.33865469,107170.0,107160.0,0.00015142]
[1748135825123,0.33865469,107170.0,107160.0,0.27931142]
[1748135825322,0.42820025,107170.0,107160.0,0.28131142]
[1748135825528,0.12244556,107170.0,107160.0,0.28131142]
[1748135825736,0.12244556,107170.0,107160.0,0.27931142]
[1748135825916,0.12244556,107170.0,107160.0,0.28131142]
[1748135826132,0.12344556,107170.0,107160.0,0.28131142]
[1748135826498,0.42920025,107170.0,107160.0,0.28131142]
[1748135826708,0.12344556,107170.0,107160.0,0.28131142]
[1748135826918,0.15574556,107170.0,107160.0,0.28131142]
[1748135827220,0.15574556,107170.0,107160.0,0.28135142]
[1748135827422,0.15574556,107170.0,107160.0,0.27935142]
[1748135827657,0.15574556,107170.0,107160.0,0.69359142]
[1748135828007,0.15574556,107170.0,107160.0,0.41439142]
[1748135828193,0.15574556,107170.0,107160.0,0.69359142]
[1748135828399,0.46150025,107170.0,107160.0,0.69359142]
[1748135828636,0.46150025,107170.0,107160.0,0.00215142]
[1748135828996,0.46050025,107170.0,107160.0,0.27935142]
[1748135829167,0.46250025,107170.0,107160.0,0.28035142]
[1748135830427,0.46250025,107170.0,107160.0,0.00115142]
[1748135830624,0.39730025,107170.0,107130.0,0.08]
[1748135830773,0.30575469,107140.0,107130.0,0.08]
[1748135830974,0.46050025,107140.0,107130.0,0.08050489]
[1748135831866,0.46050025,107140.0,107130.0,0.36174489]
[1748135832268,0.15474556,107140.0,107130.0,0.35974489]
[1748135832496,0.15574556,107140.0,107130.0,0.35974489]
[1748135832899,0.46150025,107140.0,107130.0,0.35974489]
[1748135833523,0.46250025,107140.0,107130.0,0.35974489]
[1748135833922,0.15674556,107140.0,107130.0,0.35974489]
[1748135835157,0.15674556,107140.0,107130.0,0.08050489]
[1748135835316,0.46250025,107140.0,107130.0,0.08050489]
[1748135835757,0.46250025,107140.0,107130.0,0.35982489]
[1748135836157,0.4770411,107140.0,107130.0,0.08050489]
[1748135836375,0.35454085,107130.0,107080.0,0.001]
[1748135836573,0.0646,107110.0,107090.0,0.27932]
[1748135836794,0.7613,107130.0,107100.0,0.00116926]
[1748135836994,0.08954556,107120.0,107100.0,0.00116926]
[1748135837418,0.12274556,107120.0,107100.0,0.00116926]
[1748135837620,0.08954556,107120.0,107110.0,0.4124]
[1748135837972,0.06910458,107140.0,107110.0,0.4124]
[1748135838252,0.15865014,107140.0,107120.0,0.00116752]
[1748135838385,0.15865014,107140.0,107130.0,0.27932]
[1748135838594,0.15465014,107140.0,107130.0,0.27932]
[1748135839499,0.15865014,107140.0,107130.0,0.27932]
[1748135839707,0.09405014,107140.0,107130.0,0.27932]
[1748135840309,0.00450458,107140.0,107130.0,0.27932]
[1748135840520,0.00950458,107140.0,107130.0,0.27932]
[1748135840712,0.00550458,107140.0,107130.0,0.27932]
[1748135841049,0.00650458,107140.0,107130.0,0.31212]
[1748135841250,0.00650458,107140.0,107130.0,0.34232]
[1748135841497,0.00050458,107140.0,107130.0,0.43286556]
[1748135841653,0.00750458,107140.0,107130.0,0.43286556]
[1748135842471,0.00750458,107140.0,107130.0,0.43486556]
[1748135842836,0.00050458,107140.0,107130.0,0.77386556]
[1748135843050,0.00050458,107140.0,107130.0,0.77586556]
[1748135843246,0.00050458,107140.0,107130.0,0.77386556]
[1748135843720,0.00050458,107140.0,107130.0,3.03883621]
[1748135843909,0.00050458,107140.0,107130.0,5.10809131]
[1748135844106,0.00050458,107140.0,107130.0,5.11809131]
[1748135844354,0.00050458,107140.0,107130.0,5.21809131]
[1748135844526,0.00050458,107140.0,107130.0,5.21909131]
[1748135844730,0.00050458,107140.0,107130.0,4.01637121]
[1748135845314,0.00050458,107140.0,107130.0,4.01437121]
[1748135845797,0.00050458,107140.0,107130.0,4.01737121]
[1748135846217,0.00050458,107140.0,107130.0,4.04931321]
[1748135846434,0.00050458,107140.0,107130.0,3.83161015]
[1748135846640,0.00050458,107140.0,107130.0,3.92115571]
[1748135847723,0.00050458,107140.0,107130.0,4.91795381]
[1748135847975,0.00050458,107140.0,107130.0,4.89211571]
[1748135848177,0.00050458,107140.0,107130.0,4.33351571]
[1748135849447,0.00050458,107140.0,107130.0,4.01071381]
[1748135849648,0.00050458,107140.0,107130.0,3.98491571]
[1748135850436,0.00050458,107140.0,107130.0,4.01071381]
[1748135850848,0.00050458,107140.0,107130.0,3.98491571]
[1748135851504,0.00050458,107140.0,107130.0,3.70559571]
[1748135851722,0.00050458,107140.0,107130.0,3.98487571]
[1748135853261,0.00050458,107140.0,107130.0,4.01067381]
[1748135853691,0.00050458,107140.0,107130.0,2.18468971]
[1748135853890,0.00050458,107140.0,107130.0,1.21409421]
[1748135854103,0.00050458,107140.0,107130.0,0.71790636]
[1748135854304,0.00050458,107140.0,107130.0,0.49310936]
[1748135854517,0.00050458,107140.0,107130.0,0.4035638]
[1748135854724,0.00050458,107140.0,107130.0,0.3035638]
[1748135855393,0.00050458,107140.0,107130.0,0.2995638]
[1748135855592,0.00050458,107140.0,107130.0,0.2975638]
[1748135855795,0.00050458,107140.0,107130.0,0.2995638]
[1748135856865,0.00050458,107140.0,107130.0,0.6395638]
[1748135857566,0.00050458,107140.0,107130.0,1.6104838]
[1748135857774,0.06520458,107140.0,107130.0,0.006]
[1748135857985,0.46050483,107140.0,107130.0,0.006]
[1748135858194,0.46050483,107140.0,107130.0,0.28528]
[1748135858626,0.46050483,107140.0,107130.0,0.28028]
[1748135859613,0.46350483,107140.0,107130.0,0.28028]
[1748135859799,0.46650483,107140.0,107130.0,0.28028]
[1748135861114,0.16075014,107140.0,107130.0,0.28032]
[1748135866095,0.00650458,107140.0,107130.0,0.001]
[1748135866306,0.00650458,107140.0,107130.0,0.28152606]
[1748135866560,0.00650458,107140.0,107130.0,0.001]
[1748135866780,0.00650458,107140.0,107130.0,0.28036]
[1748135866990,0.00650458,107140.0,107130.0,0.62036]
[1748135867339,0.00650458,107140.0,107130.0,0.341]
[1748135867547,0.00350458,107140.0,107130.0,1.59068]
[1748135867749,0.00150458,107140.0,107130.0,1.59068]
[1748135867951,0.00350458,107140.0,107130.0,1.59068]
[1748135869038,0.00350458,107140.0,107130.0,0.89972]
[1748135869243,0.00350458,107140.0,107130.0,1.59064]
[1748135870309,0.00350458,107140.0,107130.0,1.03192]
[1748135870519,0.00350458,107140.0,107130.0,0.62036]
[1748135873549,0.00350458,107140.0,107130.0,0.63438278]
[1748135876421,0.00350458,107140.0,107130.0,0.35502278]
[1748135876615,0.00350458,107140.0,107130.0,0.63438278]
[1748135877521,0.00350458,107140.0,107130.0,1.60458278]
[1748135878099,0.00350458,107140.0,107130.0,1.15002919]
[1748135880487,0.06710458,107140.0,107130.0,0.341]
[1748135880647,0.37285927,107140.0,107130.0,0.28032]
[1748135880856,0.37285927,107140.0,107130.0,0.62032]
[1748135880857,0.15665014,107140.0,107130.0,0.62032]
[1748135881471,0.09305014,107140.0,107130.0,0.62032]
[1748135882342,0.12615014,107140.0,107130.0,0.62032]
[1748135882813,0.12715014,107140.0,107100.0,0.0628]
[1748135883019,0.03760458,107140.0,107110.0,0.27932]
[1748135883845,0.03660458,107140.0,107110.0,0.27932]
[1748135884251,0.06870458,107140.0,107110.0,0.27932]
[1748135884459,0.06870458,107140.0,107110.0,0.001]
[1748135884668,0.06670458,107140.0,107120.0,0.27936]
[1748135887267,0.0622,107130.0,107100.0,0.42954556]
[1748135887464,0.0622,107130.0,107110.0,0.84732]
[1748135888539,0.15455014,107140.0,107110.0,0.84732]
[1748135888740,0.15455014,107140.0,107110.0,0.69092]
[1748135889321,0.15455014,107140.0,107110.0,0.69192]
[1748135889532,0.0313,107130.0,107110.0,0.69092]
[1748135889740,0.0635,107130.0,107110.0,0.69092]
[1748135889951,0.0635,107130.0,107110.0,0.27936]
[1748135890148,0.0635,107130.0,107110.0,0.28036]
[1748135890377,0.0635,107130.0,107110.0,0.001]
[1748135890594,0.0635,107130.0,107120.0,0.27936]
[1748135891442,0.0313,107120.0,107110.0,0.002]
[1748135891643,0.0635,107120.0,107110.0,0.28036]
[1748135891996,0.0635,107120.0,107110.0,0.28136]
[1748135892193,0.0635,107120.0,107110.0,0.27936]
[1748135892600,0.0635,107120.0,107110.0,0.28036]
[1748135893828,0.15304556,107120.0,107090.0,0.34995317]
[1748135894041,0.15304556,107120.0,107100.0,0.27936]
[1748135894042,0.062,107110.0,107100.0,0.27936]
[1748135895128,0.062,107110.0,107100.0,0.28036]
[1748135896175,0.062,107110.0,107100.0,0.28136]
[1748135897593,0.062,107110.0,107100.0,1.251]
[1748135897819,0.062,107110.0,107100.0,1.0946]
[1748135898027,0.062,107110.0,107100.0,0.69228]
[1748135898236,0.062,107110.0,107100.0,0.2814]
[1748135903016,0.15154556,107120.0,107100.0,0.2814]
[1748135903651,0.0303,107110.0,107100.0,0.2814]
[1748135904109,0.0303,107110.0,107100.0,0.2804]
[1748135904324,0.001,107110.0,107100.0,0.2804]
[1748135905042,0.001,107110.0,107100.0,0.2814]
[1748135905252,0.001,107110.0,107100.0,0.2804]
[1748135905468,0.001,107110.0,107100.0,0.2814]
[1748135905677,0.001,107110.0,107100.0,0.3141]
[1748135905892,0.001,107110.0,107100.0,0.37146745]
[1748135906095,0.001,107110.0,107100.0,1.09430645]
[1748135906307,0.001,107110.0,107100.0,1.068539]
[1748135906713,0.001,107110.0,107100.0,0.6857]
[1748135906918,0.001,107110.0,107100.0,0.70437282]
[1748135907316,0.001,107110.0,107100.0,0.80804882]
[1748135907455,0.001,107110.0,107100.0,1.79485182]
[1748135909012,0.001,107110.0,107100.0,1.89893823]
[1748135909204,0.001,107110.0,107100.0,1.34017823]
[1748135909402,0.001,107110.0,107100.0,0.84610782]
[1748135910489,0.001,107110.0,107100.0,1.12550782]
[1748135911107,0.001,107110.0,107100.0,0.71458782]
[1748135912410,0.001,107110.0,107100.0,0.77658782]
[1748135913849,0.001,107110.0,107100.0,0.71458782]
[1748135916795,0.001,107110.0,107100.0,0.80085527]
[1748135917023,0.06250458,107140.0,107110.0,0.01454085]
[1748135917263,0.00050458,107140.0,107120.0,0.8297211]
[1748135917482,0.00050458,107140.0,107130.0,0.2794]
[1748135917688,0.00050458,107140.0,107130.0,1.373188]
[1748135917885,0.00050458,107140.0,107130.0,1.38744735]
[1748135918132,0.00050458,107140.0,107130.0,1.31136535]
[1748135918353,0.00050458,107140.0,107130.0,0.29365935]
[1748135918585,0.00250458,107140.0,107130.0,0.40769435]
[1748135918809,0.00250458,107140.0,107130.0,0.12264435]
[1748135919030,0.00050458,107140.0,107130.0,0.21335599]
[1748135919238,0.00650458,107140.0,107130.0,0.21218991]
[1748135919949,0.00650458,107140.0,107130.0,0.37751491]
[1748135920380,0.00650458,107140.0,107130.0,0.71751491]
[1748135920561,0.00050458,107140.0,107130.0,0.71751491]
[1748135921036,0.00450458,107140.0,107130.0,0.71751491]
[1748135921869,0.00450458,107140.0,107130.0,0.84987491]
[1748135922518,0.00450458,107140.0,107130.0,0.97951576]
[1748135922733,0.0642,107180.0,107140.0,0.4454083]
[1748135922945,0.06435134,107180.0,107160.0,0.34]
[1748135923161,0.06435134,107180.0,107170.0,0.28052467]
[1748135923405,0.06435134,107180.0,107170.0,0.27936]
[1748135924667,0.06635134,107180.0,107170.0,0.27936]
[1748135924896,0.06835134,107180.0,107170.0,0.27936]
[1748135925801,0.06835134,107180.0,107170.0,0.28897559]
[1748135927558,0.06835134,107180.0,107170.0,1.25925559]
[1748135928398,0.06835134,107180.0,107170.0,0.70065559]
[1748135928807,0.06835134,107180.0,107170.0,0.28897559]
[1748135929517,0.06835134,107180.0,107170.0,0.62897559]
[1748135930402,0.06835134,107180.0,107150.0,0.08954556]
[1748135930610,0.06835134,107180.0,107160.0,0.01570563]
[1748135930819,0.06835134,107180.0,107160.0,0.10525119]
[1748135931456,0.06435134,107180.0,107170.0,0.27928]
[1748135932802,0.06435134,107180.0,107170.0,0.28915727]
[1748135933257,0.00215134,107180.0,107170.0,1.63973713]
[1748135933446,0.00215134,107180.0,107170.0,1.68973713]
[1748135933666,0.0308,107210.0,107180.0,0.07754085]
[1748135933926,0.0308,107210.0,107190.0,0.63370735]
[1748135934147,0.0641,107210.0,107200.0,0.61928]
[1748135936084,0.0641,107210.0,107200.0,0.63358225]
[1748135936492,0.0651,107210.0,107200.0,0.63358225]
[1748135937142,0.0671,107210.0,107200.0,0.63358225]
[1748135937367,0.0671,107210.0,107200.0,0.63346444]
[1748135937595,0.0671,107210.0,107200.0,1.60342444]
[1748135939750,0.0671,107210.0,107200.0,0.63346444]
[1748135940659,0.0671,107210.0,107150.0,0.1957269]
[1748135940660,0.0621,107190.0,107150.0,0.1957269]
[1748135940887,0.0302,107180.0,107160.0,0.60903256]
[1748135941107,0.0302,107180.0,107170.0,0.34]
[1748135941339,0.0621,107190.0,107170.0,0.08954556]
[1748135941554,0.0621,107200.0,107170.0,0.44108956]
[1748135941755,0.0621,107200.0,107170.0,0.08954556]
[1748135941966,0.0621,107200.0,107170.0,0.42954556]
[1748135943014,0.0621,107200.0,107170.0,0.44319448]
[1748135943222,0.0621,107200.0,107170.0,0.44619448]